bitfinex/quotes_ETHUSD_20251130
["timestamp","ask_amount","ask_price","bid_price","bid_amount"]
[1764467583490,14.39316189,3009.4,3009.3,0.001]
[1764467584058,14.39316189,3009.4,3009.3,0.2151]
[1764467588170,0.33593433,3009.4,3009.3,0.4292]
[1764467588373,0.54493433,3009.4,3009.3,0.4292]
[1764467592275,0.002,3009.5,3009.3,0.4292]
[1764467592276,0.002,3009.5,3009.3,0.8127132]
[1764467592471,0.002,3009.5,3009.4,0.4282]
[1764467597094,0.002,3009.5,3009.4,0.2141]
[1764467597469,3.32292151,3009.4,3009.3,0.001]
[1764467597669,4.15615584,3009.4,3009.3,0.001]
[1764467598105,3.65885584,3009.4,3009.3,0.001]
[1764467602500,4.15685584,3009.4,3009.3,0.001]
[1764467602683,3.65885584,3009.4,3009.3,0.001]
[1764467604702,4.64495584,3009.4,3009.3,0.001]
[1764467604872,4.15685584,3009.4,3009.3,0.001]
[1764467606403,3.65885584,3009.4,3009.3,0.001]
[1764467608015,4.15335584,3009.4,3009.3,0.001]
[1764467608701,0.002,3009.5,3009.3,0.2151]
[1764467608903,0.002,3009.5,3009.4,0.2141]
[1764467609508,0.33793433,3009.5,3009.4,0.2141]
[1764467610281,0.002,3009.5,3009.4,0.2141]
[1764467610486,0.33793433,3009.5,3009.4,0.2141]
[1764467611787,0.002,3009.5,3009.4,0.2141]
[1764467619331,0.002,3009.5,3009.4,0.4282]
[1764467619624,0.002,3009.5,3009.4,4.12645443]
[1764467621006,0.002,3009.5,3009.4,0.80353292]
[1764467621725,0.002,3009.5,3009.4,0.58943292]
[1764467622028,0.002,3009.5,3009.4,0.2141]
[1764467626832,0.002,3009.5,3009.4,0.2151]
[1764467632438,1.32353433,3009.5,3009.4,0.001]
[1764467632606,1.53863433,3009.5,3009.4,0.001]
[1764467632807,2.3779165,3009.5,3009.4,0.001]
[1764467634334,5.20962759,3009.5,3009.4,0.001]
[1764467634513,5.70072759,3009.5,3009.4,0.001]
[1764467641345,4.87369326,3009.5,3009.4,0.001]
[1764467641537,0.4261,3009.5,3009.4,0.2151]
[1764467641736,3.74891109,3009.5,3009.4,0.001]
[1764467642620,0.4261,3009.5,3009.4,0.001]
[1764467643519,3.74891109,3009.5,3009.4,0.001]
[1764467643930,0.4261,3009.5,3009.4,0.2151]
[1764467644347,3.74891109,3009.5,3009.4,0.2151]
[1764467644552,4.21571109,3009.5,3009.4,0.001]
[1764467644751,0.4261,3009.5,3009.4,0.001]
[1764467644935,0.4261,3009.5,3009.4,0.2151]
[1764467645251,0.211,3009.5,3009.4,0.2151]
[1764467648441,0.002,3009.5,3009.4,0.80795591]
[1764467648859,0.002,3009.5,3009.4,4.13087742]
[1764467649162,0.002,3009.5,3009.4,0.80795591]
[1764467649729,0.002,3009.5,3009.4,0.59385591]
[1764467651148,0.002,3009.5,3009.4,3.91677742]
[1764467652527,0.002,3009.5,3009.4,0.59385591]
[1764467653558,0.002,3009.5,3009.4,3.91677742]
[1764467653762,0.002,3009.5,3009.4,4.13087742]
[1764467653931,0.002,3009.5,3009.4,4.16410663]
[1764467655935,0.002,3009.5,3009.4,0.62708512]
[1764467656136,0.002,3009.5,3009.4,0.2151]
[1764467656729,0.9599,3009.5,3009.4,0.001]
[1764467661074,0.4688,3009.5,3009.4,0.001]
[1764467661768,0.002,3009.5,3009.4,0.001]
[1764467668845,0.4632,3009.5,3009.4,0.001]
[1764467669769,0.79913433,3009.5,3009.4,0.001]
[1764467670463,0.33793433,3009.5,3009.4,0.001]
[1764467671148,0.002,3009.5,3009.4,0.001]
[1764467672580,0.002,3009.5,3009.4,0.2151]
[1764467674970,0.002,3009.5,3009.4,3.91676262]
[1764467675169,0.002,3009.5,3009.4,4.13086262]
[1764467675368,0.002,3009.5,3009.4,4.16409183]
[1764467678170,0.002,3009.5,3009.4,3.94999183]
[1764467678376,0.002,3009.5,3009.4,4.16409183]
[1764467678670,0.002,3009.5,3009.4,4.13086262]
[1764467680572,0.002,3009.5,3009.4,4.16409183]
[1764467682372,0.002,3009.5,3009.4,3.91676262]
[1764467695655,0.002,3009.5,3009.4,0.37974111]
[1764467695862,0.4966,3009.5,3009.4,0.37974111]
[1764467696086,0.9769,3009.5,3009.4,0.001]
[1764467701693,0.9769,3009.5,3009.4,0.001]
[1764467705876,1.31283433,3009.5,3009.4,0.001]
[1764467707088,0.9769,3009.5,3009.4,0.001]
[1764467715991,1.31283433,3009.5,3009.4,0.001]
[1764467723007,0.9769,3009.5,3009.4,0.001]
[1764467727315,0.4966,3009.5,3009.4,0.001]
[1764467727494,0.002,3009.5,3009.4,0.001]
[1764467727818,0.002,3009.5,3009.4,0.2151]
[1764467732915,0.002,3009.5,3009.4,3.53802151]
[1764467738512,0.002,3009.5,3009.4,4.22766093]
[1764467739492,0.002,3009.5,3009.4,3.53802151]
[1764467741522,0.002,3009.5,3009.4,0.2151]
[1764467743334,0.002,3009.5,3009.4,3.53802151]
[1764467744802,0.4909,3009.5,3009.4,0.001]
[1764467745205,0.002,3009.5,3009.4,0.001]
[1764467746317,0.002,3009.5,3009.4,0.2151]
[1764467750730,0.002,3009.5,3009.4,3.57125072]
[1764467754300,0.002,3009.5,3009.4,4.2822886]
[1764467758035,0.9803,3009.5,3009.4,0.001]
[1764467759725,4.30311109,3009.5,3009.4,0.001]
[1764467760034,4.43627153,3009.5,3009.4,0.001]
[1764467763812,1.44939477,3009.5,3009.4,0.001]
[1764467764204,4.93438452,3009.5,3009.4,0.001]
[1764467764421,5.27031885,3009.5,3009.4,0.001]
[1764467767436,5.99591296,3009.5,3009.4,0.001]
[1764467767634,9.62414008,3009.5,3009.4,0.001]
[1764467768341,5.99591296,3009.5,3009.4,0.001]
[1764467786873,5.16657863,3009.5,3009.4,0.001]
[1764467787030,5.98761296,3009.5,3009.4,0.001]
[1764467806178,6.08680324,3009.5,3009.4,0.001]
[1764467807883,5.98761296,3009.5,3009.4,0.001]
[1764467812786,9.21202646,3009.5,3009.4,0.001]
[1764467815109,9.31121674,3009.5,3009.4,0.001]
[1764467815787,9.21202646,3009.5,3009.4,0.001]
[1764467816089,8.72692646,3009.5,3009.4,0.001]
[1764467819498,9.19912646,3009.5,3009.4,0.001]
[1764467820190,8.72692646,3009.5,3009.4,0.001]
[1764467820380,5.16657863,3009.5,3009.4,0.001]
[1764467820688,4.18356564,3009.5,3009.4,0.001]
[1764467822188,4.18356564,3009.5,3009.4,0.2151]
[1764467822589,4.39256564,3009.5,3009.4,0.2151]
[1764467822907,4.18356564,3009.5,3009.4,0.4292]
[1764467823877,0.13516044,3009.5,3009.4,0.4292]
[1764467824095,0.002,3009.5,3009.4,0.4292]
[1764467824357,3.32481109,3009.5,3009.4,0.4292]
[1764467824598,3.32481109,3009.5,3009.4,0.2151]
[1764467838494,0.002,3009.5,3009.4,0.2151]
[1764467838699,0.002,3009.5,3009.4,0.4292]
[1764467840727,0.002,3009.5,3009.4,0.80795725]
[1764467843237,0.002,3009.5,3009.4,4.13087876]
[1764467847829,0.002,3009.5,3009.4,0.80795725]
[1764467853136,0.002,3009.5,3009.4,4.16410797]
[1764467856930,0.002,3009.5,3009.4,4.13087876]
[1764467862541,0.002,3009.5,3009.4,3.91677876]
[1764467865517,0.002,3009.5,3009.4,0.59385725]
[1764467869744,0.002,3009.5,3009.4,3.91677876]
[1764467870551,0.002,3009.5,3009.4,0.59385725]
[1764467877260,0.002,3009.5,3009.4,0.37975725]
[1764467877448,0.9119,3009.5,3009.4,0.001]
[1764467877853,1.9104604,3009.5,3009.4,0.001]
[1764467880732,0.9119,3009.5,3009.4,0.001]
[1764467881070,0.59194138,3009.5,3009.4,0.001]
[1764467882360,0.13514138,3009.5,3009.4,0.001]
[1764467884348,0.59194138,3009.5,3009.4,0.001]
[1764467884862,1.04504138,3009.5,3009.4,0.001]
[1764467900249,4.36785247,3009.5,3009.4,0.001]
[1764467900460,5.13689985,3009.5,3009.4,0.001]
[1764467907185,5.47283418,3009.5,3009.4,0.001]
[1764467908486,5.13689985,3009.5,3009.4,0.001]
[1764467914294,4.68379985,3009.5,3009.4,0.001]
[1764467914593,5.16889985,3009.5,3009.4,0.001]
[1764467915884,5.37789985,3009.5,3009.4,0.001]
[1764467916589,5.71383418,3009.5,3009.4,0.001]
[1764467924780,5.37789985,3009.5,3009.4,0.001]
[1764467927892,5.71383418,3009.5,3009.4,0.001]
[1764467932512,8.93840526,3009.5,3009.4,0.001]
[1764467933512,8.60247093,3009.5,3009.4,0.001]
[1764467933715,8.93840526,3009.5,3009.4,0.001]
[1764467934712,8.60247093,3009.5,3009.4,0.001]
[1764467934905,8.93840526,3009.5,3009.4,0.001]
[1764467941300,5.71383418,3009.5,3009.4,0.001]
[1764467944119,6.53861857,3009.5,3009.4,0.001]
[1764467944499,6.43942829,3009.5,3009.4,0.001]
[1764467954748,6.53861857,3009.5,3009.4,0.001]
[1764467955251,6.43942829,3009.5,3009.4,0.001]
[1764467959147,5.16159396,3009.5,3009.4,0.001]
[1764467959322,5.16159396,3009.5,3009.4,0.2151]
[1764467959323,4.39254658,3009.5,3009.4,0.2151]
[1764467959731,4.18354658,3009.5,3009.4,0.2151]
[1764467959931,4.39254658,3009.5,3009.4,0.2151]
[1764467960244,4.72848091,3009.5,3009.4,0.2151]
[1764467965147,4.39254658,3009.5,3009.4,0.2151]
[1764467966054,7.61711766,3009.5,3009.4,0.2151]
[1764467973457,4.39254658,3009.5,3009.4,0.2151]
[1764467974674,4.72848091,3009.5,3009.4,0.2151]
[1764467975478,10.07462738,3009.5,3009.4,0.001]
[1764467993578,8.74469305,3009.5,3009.4,0.001]
[1764467993750,9.08062738,3009.5,3009.4,0.001]
[1764467994584,5.8560563,3009.5,3009.4,0.001]
[1764467994957,6.3380563,3009.5,3009.4,0.001]
[1764468000487,6.8241563,3009.5,3009.4,0.001]
[1764468001291,6.00212197,3009.5,3009.4,0.001]
[1764468001470,5.8560563,3009.5,3009.4,0.001]
[1764468002793,4.39254658,3009.5,3009.4,0.001]
[1764468002961,4.39254658,3009.5,3009.4,0.2151]
[1764468007609,4.18354658,3009.5,3009.4,0.2151]
[1764468007811,4.39254658,3009.5,3009.4,0.001]
[1764468008216,4.87454658,3009.5,3009.4,0.001]
[1764468008570,4.39254658,3009.5,3009.4,0.001]
[1764468011106,4.72848091,3009.5,3009.4,0.001]
[1764468011275,4.39254658,3009.5,3009.4,0.2151]
[1764468012108,4.72848091,3009.5,3009.4,0.4292]
[1764468012292,4.72848091,3009.5,3009.4,0.2151]
[1764468012810,4.39254658,3009.5,3009.4,0.2151]
[1764468019012,4.39254658,3009.5,3009.4,0.4292]
[1764468019417,4.39254658,3009.5,3009.4,0.2151]
[1764468022225,4.18354658,3009.5,3009.4,0.2151]
[1764468022385,4.39254658,3009.5,3009.4,0.2151]
[1764468022719,0.002,3009.5,3009.4,0.4292]
[1764468022892,0.002,3009.5,3009.4,0.80463315]
[1764468023289,0.002,3009.5,3009.4,0.4292]
[1764468034223,0.002,3009.5,3009.4,3.75212151]
[1764468034418,0.002,3009.5,3009.4,4.18132151]
[1764468034630,0.002,3009.5,3009.4,4.21455072]
[1764468036650,0.002,3009.5,3009.4,3.78535072]
[1764468039253,0.002,3009.5,3009.4,4.56300733]
[1764468039552,0.002,3009.5,3009.4,1.02598582]
[1764468039954,0.002,3009.5,3009.4,0.2151]
[1764468041759,3.99543205,3009.9,3009.4,0.2151]
[1764468042066,0.4667,3009.8,3009.4,0.2151]
[1764468043874,0.4615,3009.5,3009.4,0.001]
[1764468044041,0.6705,3009.5,3009.4,0.001]
[1764468044246,3.25270255,3009.5,3009.4,0.001]
[1764468044548,3.38586698,3009.5,3009.4,0.001]
[1764468046776,6.70867807,3009.5,3009.4,0.001]
[1764468047078,6.37274374,3009.5,3009.4,0.001]
[1764468047742,6.70867807,3009.5,3009.4,0.001]
[1764468049174,6.37274374,3009.5,3009.4,0.001]
[1764468053888,6.70867807,3009.5,3009.4,0.001]
[1764468054184,5.65470396,3009.5,3009.4,0.001]
[1764468054369,5.31876963,3009.5,3009.4,0.001]
[1764468060288,5.65470396,3009.5,3009.4,0.001]
[1764468060888,5.31876963,3009.5,3009.4,0.001]
[1764468061965,5.65470396,3009.5,3009.4,0.001]
[1764468062165,6.87483437,3009.5,3009.4,0.001]
[1764468071187,5.65470396,3009.5,3009.4,0.001]
[1764468079199,5.31876963,3009.5,3009.4,0.001]
[1764468079668,3.45597552,3009.5,3009.4,0.2151]
[1764468079872,0.209,3009.5,3009.4,0.2151]
[1764468080378,0.2151,3009.6,3009.4,0.2151]
[1764468080562,0.209,3009.7,3009.5,0.2141]
[1764468080875,0.209,3009.7,3009.6,0.2141]
[1764468083099,0.209,3009.7,3009.6,0.4282]
[1764468083417,3.32448832,3009.8,3009.6,0.2141]
[1764468083418,0.002,3009.8,3009.6,0.2141]
[1764468083683,3.53350262,3009.8,3009.6,0.2141]
[1764468085361,0.211,3009.8,3009.6,0.2141]
[1764468086859,0.211,3009.8,3009.7,0.2141]
[1764468097896,0.211,3009.8,3009.4,0.2151]
[1764468098496,0.4682,3009.5,3009.4,0.001]
[1764468099098,0.4883,3009.7,3009.4,0.001]
[1764468099296,0.4883,3009.7,3009.6,0.001]
[1764468099676,0.9565,3009.7,3009.6,0.001]
[1764468102228,0.211,3009.8,3009.6,0.001]
[1764468110608,0.002,3009.8,3009.6,0.001]
[1764468110778,0.4682,3009.7,3009.6,0.001]
[1764468110982,0.9565,3009.7,3009.6,0.001]
[1764468112107,0.4682,3009.7,3009.6,0.001]
[1764468112607,0.211,3009.8,3009.6,0.2151]
[1764468112815,0.211,3009.8,3009.7,0.2141]
[1764468113598,0.002,3009.8,3009.7,3.53669029]
[1764468113918,0.002,3009.8,3009.7,4.24414821]
[1764468114126,0.002,3009.8,3009.7,0.92155792]
[1764468119590,0.002,3009.8,3009.7,4.45824821]
[1764468120211,0.002,3009.8,3009.7,4.45494821]
[1764468121807,0.002,3009.8,3009.7,4.48817411]
[1764468130822,0.002,3009.8,3009.7,4.27407411]
[1764468131019,0.002,3009.8,3009.7,4.48487411]
[1764468135941,0.002,3009.8,3009.7,4.27407411]
[1764468136337,0.002,3009.8,3009.7,4.24084821]
[1764468137341,0.10591841,3009.8,3009.7,4.24084821]
[1764468140137,0.002,3009.8,3009.7,4.24084821]
[1764468140518,0.002,3009.8,3009.7,4.37395991]
[1764468142042,0.002,3009.8,3009.7,4.40718581]
[1764468142545,0.002,3009.8,3009.7,4.61798581]
[1764468143049,0.002,3010.8,3010.6,0.2108]
[1764468143254,0.002,3010.8,3010.7,2.81059705]
[1764468143546,0.002,3010.8,3010.7,3.60597863]
[1764468143758,0.002,3010.8,3010.7,2.14837351]
[1764468143932,0.002,3010.8,3010.7,6.21693726]
[1764468146423,0.002,3010.8,3010.7,6.08693726]
[1764468150084,0.4713,3010.8,3010.7,0.67011173]
[1764468150372,0.4713,3010.8,3010.5,3.32160189]
[1764468150373,0.9257,3010.8,3010.6,3.32159702]
[1764468150659,0.4564,3010.8,3010.6,3.32159702]
[1764468150959,0.9237,3010.7,3010.6,3.32159702]
[1764468154681,0.9237,3010.7,3010.5,3.53166369]
[1764468154958,0.9237,3010.6,3010.5,3.53166369]
[1764468155159,0.9237,3010.6,3010.5,4.2641321]
[1764468155355,0.002,3010.8,3010.5,7.58583945]
[1764468155562,0.4564,3010.8,3010.5,7.58583945]
[1764468157354,0.4693,3010.6,3010.4,3.32172252]
[1764468157542,0.4693,3010.5,3010.4,3.32172252]
[1764468157742,0.9237,3010.5,3010.3,3.32188054]
[1764468157968,0.4544,3010.5,3010.3,3.32188054]
[1764468158163,0.9237,3010.4,3010.3,3.32188054]
[1764468160455,0.002,3010.8,3010.3,7.57321961]
[1764468160655,0.4564,3010.8,3010.3,7.54000033]
[1764468160959,0.4564,3010.8,3010.4,0.03321817]
[1764468161772,0.002,3010.8,3010.4,0.5766589]
[1764468162084,0.002,3010.8,3010.6,6.64319404]
[1764468162248,0.002,3010.8,3010.7,0.03321486]
[1764468162680,0.002,3010.8,3010.7,5.01831002]
[1764468162855,0.002,3010.8,3010.7,1.55269811]
[1764468163182,0.002,3010.8,3010.7,2.74163884]
[1764468163347,0.002,3010.8,3010.7,3.7924]
[1764468164194,0.002,3010.8,3010.7,7.11388669]
[1764468164695,0.002,3010.8,3010.7,10.33628374]
[1764468169283,0.002,3010.8,3010.7,10.12628374]
[1764468169447,0.002,3010.8,3010.7,10.33628374]
[1764468169771,0.002,3010.8,3010.7,10.00364301]
[1764468170466,0.002,3010.8,3010.7,10.33628374]
[1764468173558,0.002,3010.8,3010.7,6.57044596]
[1764468173988,0.002,3010.8,3010.7,6.36044596]
[1764468174296,0.002,3010.8,3010.7,5.51864196]
[1764468178801,0.002,3010.8,3010.7,5.30864196]
[1764468179098,0.002,3010.8,3010.7,5.51864196]
[1764468179990,0.002,3010.8,3010.7,5.85128269]
[1764468182492,0.00034643,3010.9,3010.7,9.17276938]
[1764468182694,0.00034643,3010.9,3010.8,1.61729865]
[1764468183206,0.00034643,3010.9,3010.8,2.19395314]
[1764468184307,0.00034643,3010.9,3010.8,6.24092362]
[1764468188914,0.00034643,3010.9,3010.8,5.90828289]
[1764468189274,0.00034643,3010.9,3010.8,6.24092362]
[1764468189579,0.00034643,3010.9,3010.8,10.07584775]
[1764468189781,0.00034643,3010.9,3010.8,10.50063399]
[1764468191606,0.002,3011.2,3010.9,1.13109811]
[1764468191903,0.002,3011.2,3011.1,8.1911791]
[1764468192104,0.002,3011.2,3011.1,8.4011791]
[1764468192290,0.002,3011.2,3011.1,8.6119791]
[1764468192690,0.002,3011.2,3011.1,9.0699791]
[1764468193089,0.002,3012.5,3011.4,0.2108]
[1764468193287,0.1822,3011.9,3011.8,0.33264073]
[1764468193501,0.6365,3011.9,3011.8,1.62098586]
[1764468193701,1.0945,3011.9,3011.8,1.62098586]
[1764468194000,1.0945,3011.9,3011.8,1.41098586]
[1764468194189,1.0945,3011.9,3011.8,1.62098586]
[1764468194387,1.0945,3011.9,3011.6,3.32049119]
[1764468194581,0.4543,3011.7,3011.6,3.32049119]
[1764468194981,0.9123,3011.7,3011.6,3.32049119]
[1764468195183,0.9123,3011.7,3011.5,3.32052613]
[1764468195382,0.1822,3011.9,3011.5,4.04612024]
[1764468195383,0.9123,3011.6,3011.5,4.04612024]
[1764468196614,0.9123,3011.6,3011.5,3.32052613]
[1764468202624,0.9143,3011.6,3011.5,3.32052613]
[1764468203331,0.4705,3011.6,3011.5,3.32052613]
[1764468203635,0.9688,3011.6,3011.5,3.32052613]
[1764468216723,0.9688,3011.6,3011.5,3.35373217]
[1764468216924,0.9688,3011.6,3011.5,3.53052613]
[1764468217125,0.9688,3011.6,3011.5,3.56373217]
[1764468217324,0.9688,3011.6,3011.5,3.53052613]
[1764468217722,0.9688,3011.6,3011.5,3.56373217]
[1764468218610,0.002,3011.6,3011.5,3.56373217]
[1764468219849,0.4772,3011.6,3011.5,3.56473217]
[1764468220447,0.002,3011.6,3011.5,4.43087079]
[1764468220633,0.002,3011.6,3011.5,4.79671756]
[1764468220950,0.002,3011.6,3011.5,5.00751756]
[1764468221645,0.002,3011.6,3011.5,8.22613769]
[1764468221944,0.002,3011.6,3011.5,4.97431152]
[1764468222148,0.002,3011.6,3011.5,5.00751756]
[1764468222316,0.002,3011.6,3011.5,6.13861567]
[1764468222717,0.002,3011.6,3011.5,6.60681567]
[1764468225146,0.002,3011.6,3011.5,6.36280963]
[1764468226813,0.002,3011.6,3011.5,6.0301689]
[1764468227652,0.002,3011.6,3011.5,6.36280963]
[1764468229122,0.002,3011.6,3011.5,6.15280963]
[1764468229345,0.002,3011.6,3011.5,6.36280963]
[1764468231122,0.002,3011.6,3011.5,6.60681567]
[1764468231327,0.002,3011.6,3011.5,6.27417494]
[1764468231565,0.002,3011.6,3011.5,6.60681567]
[1764468233233,0.002,3011.6,3011.5,6.36280963]
[1764468235464,0.002,3011.6,3011.5,5.74650563]
[1764468235639,0.002,3011.6,3011.5,5.77971167]
[1764468237464,0.002,3011.6,3011.5,5.74650563]
[1764468238456,0.4764,3011.6,3011.5,5.53650563]
[1764468238676,0.9349,3011.6,3011.5,5.74650563]
[1764468240744,0.002,3011.6,3011.5,5.99051167]
[1764468241229,0.002,3011.6,3011.5,9.49177699]
[1764468241434,0.002,3011.6,3011.5,9.79121168]
[1764468248962,0.002,3011.6,3011.5,9.79121168]
[1764468249662,1e-08,3012.3,3012.2,0.94894473]
[1764468249962,1e-08,3012.3,3012.2,4.76950016]
[1764468250274,0.1919,3014.0,3012.5,0.2108]
[1764468250275,0.4585,3013.4,3012.5,0.2108]
[1764468250463,0.6505,3013.4,3012.6,5.10214089]
[1764468250657,0.6505,3013.4,3012.6,5.31294089]
[1764468250840,0.6505,3013.4,3012.6,5.96344089]
[1764468251041,0.6505,3013.4,3012.6,5.75264089]
[1764468251235,0.6505,3013.4,3012.6,9.67169636]
[1764468251465,0.6505,3013.4,3012.6,9.88249636]
[1764468251632,1e-08,3012.8,3012.7,1.67453884]
[1764468251838,1e-08,3012.8,3012.7,1.88533884]
[1764468252388,1e-08,3012.8,3012.7,2.53583884]
[1764468252539,1e-08,3012.8,3012.7,3.8560278]
[1764468253362,1e-08,3012.8,3012.7,7.1753095]
[1764468254971,1e-08,3012.8,3012.7,6.9645095]
[1764468255173,1e-08,3012.8,3012.7,7.1753095]
[1764468257168,1e-08,3012.8,3012.7,7.3853095]
[1764468260073,1e-08,3012.8,3012.7,7.1745095]
[1764468261288,1e-08,3012.8,3012.7,6.84186877]
[1764468261586,1e-08,3012.8,3012.7,7.1745095]
[1764468262872,0.46710001,3012.8,3012.7,6.01556477]
[1764468263071,1e-08,3012.8,3012.7,10.01980036]
[1764468263266,1e-08,3012.8,3012.7,10.39211155]
[1764468264186,1e-08,3012.8,3012.7,10.60291155]
[1764468265263,0.1919,3014.0,3012.8,0.405504]
[1764468265470,0.1919,3014.0,3013.4,0.73814473]
[1764468265783,0.4914,3013.9,3013.7,0.33264073]
[1764468266159,0.4671,3013.8,3013.7,0.73814473]
[1764468266358,0.4671,3013.8,3013.7,1.22954473]
[1764468266581,0.9585,3013.8,3013.7,1.22954473]
[1764468268162,0.9585,3013.8,3013.7,4.54772503]
[1764468269166,0.9585,3013.8,3013.7,4.2150843]
[1764468269466,0.9585,3013.8,3013.7,3.5271803]
[1764468269663,0.4671,3013.8,3013.7,3.3181803]
[1764468269866,0.9585,3013.8,3013.7,3.85982103]
[1764468270084,0.9585,3013.8,3013.7,3.5271803]
[1764468270287,0.9585,3013.8,3013.7,3.5603621]
[1764468271192,0.9605,3013.8,3013.7,3.5603621]
[1764468272466,0.9605,3013.8,3013.7,3.5271803]
[1764468272866,0.9605,3013.8,3013.7,3.5603621]
[1764468273376,0.9605,3013.8,3013.7,5.78452544]
[1764468273576,0.9605,3013.8,3013.7,6.74502544]
[1764468273772,0.9605,3013.8,3013.7,6.71184364]
[1764468274078,0.002,3013.8,3013.7,6.71184364]
[1764468274479,0.4691,3013.8,3013.7,6.71184364]
[1764468274974,0.9605,3013.8,3013.7,6.71184364]
[1764468277997,0.9605,3013.8,3013.7,5.34583964]
[1764468278193,0.9605,3013.8,3013.7,4.04377441]
[1764468278398,0.9605,3013.8,3013.7,4.25277441]
[1764468279996,0.9605,3013.8,3013.7,4.04377441]
[1764468280200,0.9605,3013.8,3013.7,4.25277441]
[1764468283209,0.9605,3013.8,3013.7,3.3181803]
[1764468283516,0.9605,3013.8,3013.7,3.5271803]
[1764468284415,0.9605,3013.8,3013.7,3.3181803]
[1764468284587,0.9605,3013.8,3013.7,3.5271803]
[1764468287799,0.9605,3013.8,3013.4,7.69525614]
[1764468288003,0.002,3013.8,3013.7,0.209]
[1764468288705,0.4691,3013.8,3013.7,0.209]
[1764468289204,0.9605,3013.8,3013.7,0.209]
[1764468289974,0.9605,3013.8,3013.7,3.5271803]
[1764468290136,0.9605,3013.8,3013.7,3.5603621]
[1764468290323,0.9605,3013.8,3013.7,3.5271803]
[1764468290538,0.9605,3013.8,3013.7,3.5603621]
[1764468291904,0.9605,3013.8,3013.7,3.5271803]
[1764468292209,0.9605,3013.8,3013.7,3.5603621]
[1764468292597,0.9605,3013.8,3013.7,3.3181803]
[1764468293505,0.9605,3013.8,3013.6,3.31823761]
[1764468293707,0.9655,3013.7,3013.6,3.31823761]
[1764468294418,0.9655,3013.7,3013.2,3.31870637]
[1764468294734,0.002,3013.8,3013.3,0.209]
[1764468294735,0.4937,3013.6,3013.3,0.209]
[1764468295142,0.4718,3013.4,3013.3,0.209]
[1764468295544,0.9655,3013.4,3013.3,0.209]
[1764468297431,0.9655,3013.4,3013.3,3.52762078]
[1764468299645,0.9655,3013.4,3013.3,3.56080698]
[1764468300356,0.9655,3013.4,3013.3,3.31862078]
[1764468300572,0.9655,3013.4,3013.3,3.52762078]
[1764468301467,0.002,3013.8,3013.3,11.42612199]
[1764468301748,0.002,3013.8,3013.6,6.96922155]
[1764468301947,0.002,3013.8,3013.7,0.2421818]
[1764468302145,0.4718,3013.7,3013.0,0.72559411]
[1764468302328,0.4718,3013.6,3013.1,1.26042914]
[1764468302527,0.4718,3013.6,3013.2,0.209]
[1764468302727,0.4937,3013.5,3013.2,0.209]
[1764468302929,0.4718,3013.3,3013.2,0.209]
[1764468303323,0.9655,3013.3,3013.2,0.209]
[1764468303948,0.9655,3013.3,3013.2,4.25332502]
[1764468304631,0.9655,3013.3,3013.2,4.04432502]
[1764468304829,0.9655,3013.3,3013.2,4.25332502]
[1764468306024,0.9655,3013.3,3013.2,3.52773091]
[1764468314256,0.9655,3013.3,3012.9,7.36371683]
[1764468314457,0.9655,3013.2,3013.0,1.48704587]
[1764468314635,0.4937,3013.2,3013.0,0.209]
[1764468314846,0.9655,3013.1,3013.0,0.209]
[1764468316462,0.9655,3013.1,3013.0,3.31895121]
[1764468316761,0.9655,3013.1,3013.0,3.52795121]
[1764468323436,0.9655,3013.1,3012.9,3.52806136]
[1764468323637,0.9691,3013.0,3012.9,3.52806136]
[1764468323860,0.9691,3013.0,3012.9,3.31906136]
[1764468324066,0.9691,3013.0,3012.9,3.52806136]
[1764468324446,0.9691,3013.0,3012.9,3.31906136]
[1764468324648,0.9691,3013.0,3012.8,3.32011828]
[1764468324964,1.0911,3012.9,3012.8,3.32011828]
[1764468326170,1.0911,3012.9,3012.8,0.001]
[1764468332772,1.53229474,3012.9,3012.8,0.001]
[1764468333441,4.8513561,3012.9,3012.8,0.001]
[1764468335351,5.18729043,3012.9,3012.8,0.001]
[1764468335949,5.57695021,3012.9,3012.8,0.001]
[1764468336166,5.91288454,3012.9,3012.8,0.001]
[1764468336876,6.01207482,3012.9,3012.8,0.001]
[1764468337257,5.57695021,3012.9,3012.8,0.001]
[1764468337772,6.01207482,3012.9,3012.8,0.001]
[1764468338078,5.91288454,3012.9,3012.8,0.001]
[1764468340395,5.57695021,3012.9,3012.8,0.001]
[1764468340565,5.91288454,3012.9,3012.8,0.001]
[1764468341584,5.57695021,3012.9,3012.8,0.001]
[1764468341961,5.57895021,3012.9,3012.8,0.001]
[1764468343045,2.25988885,3012.9,3012.8,0.001]
[1764468343603,0.474,3012.9,3012.8,0.001]
[1764468346360,0.002,3012.9,3012.8,0.2118]
[1764468346993,0.002,3012.9,3012.8,0.001]
[1764468349473,0.474,3012.9,3012.8,0.001]
[1764468350869,0.9711,3012.9,3012.8,0.001]
[1764468354392,1.1454,3012.9,3012.8,0.001]
[1764468355080,0.474,3012.9,3012.8,0.001]
[1764468355594,0.002,3012.9,3012.8,0.2118]
[1764468356206,0.002,3012.9,3012.8,0.001]
[1764468358378,0.002,3012.9,3012.8,0.89676547]
[1764468359199,0.002,3012.9,3012.8,1.10756547]
[1764468359886,0.002,3012.9,3012.8,0.89676547]
[1764468360972,0.002,3012.9,3012.8,4.215937]
[1764468361507,0.002,3012.9,3012.8,4.45992871]
[1764468361698,0.002,3012.9,3012.8,4.215937]
[1764468362176,0.002,3012.9,3012.8,0.89676547]